{"text_format":"1","workbook":"xlsx","n_sheets":1,"sheets":["Sheet1"],"not_rendered":{"charts":0,"images":0,"macros":1,"external_links":0,"defined_names":0,"comments":0,"pivot_tables":0},"unopened":[],"bounds":{"document_bytes":16777216,"sheet_cells":100000,"rows_first":2000,"rows_last":500,"rows_between":2000,"halvings":0,"cell_chars":16384,"cell_head_chars":4096},"cells_cut":0,"cells_raw":0,"read":"whole","date_system":"1900"}

{"sheet":"Sheet1","index":0,"n_rows":504,"n_cols":29,"rows_kept":504,"cut":false,"hidden":false,"merged":[[0,1,0,7],[2,1,2,11],[1,1,1,3],[1,5,1,7],[0,27,0,28]]}
[null,"SITE VISIT CSG INSPECTION CREATOR   v",null,null,null,null,null,null,null,"1.0.2",null,null,null,null,null,null,null,null,null,null,null,null,null,null,null,null,null,"Reference Lists"]
["SiteVisit Email:","YOURID@usgs.gov",null,null,null,"Set default Serial Number to:",null,null,null,"generic",null,null,null,null,null,null,null,null,null,null,null,null,null,null,null,null,null,null,"READ"]
["Output Path:","C:\\",null,null,null,null,null,null,null,null,null,null,null,null,null,null,null,null,null,null,null,null,null,null,null,null,null,"Read","READ"]
["Station No.","SV Date","Party","Location # (blank=0)","Serial Number (blank=default)","Insp. Code (blank=Read)","VLOOKUP","Intake Hole Cond.","VLOOKUP","Vent Hole Cond.","VLOOKUP","COMMENT","Reading 1 Est Date","Reading 1 Value","Reading 2 Est Date","Reading 2 Value","Reading 3 Est Date","Reading 3 Value","Entry Status",null,null,null,null,null,null,null,null,"No mark","NOMK"]
[null,null,null,null,null,null,{"$f":"IF(F5=\"\",\"READ\",VLOOKUP(F5,$AB$2:$AC$5,2,FALSE))","v":"READ"},null,{"$f":"IF(H5=\"\",\"UNSP\",VLOOKUP(H5,$AB$7:$AC$10,2,FALSE))","v":"UNSP"},null,{"$f":"IF(J5=\"\",\"UNSP\",VLOOKUP(J5,$AB$12:$AC$15,2,FALSE))","v":"UNSP"},null,null,null,null,null,null,null,{"$f":"IF(OR(A5<>\"\",B5<>\"\"),IF(AND(A5<>\"\",B5<>\"\",W5=0),\"COMPLETE\",\"INCOMPLETE\"),\"\")","v":""},{"$f":"IF(AND(M5<>\"\",N5=\"\"),1,0)","v":0},{"$f":"IF(AND(O5<>\"\",P5=\"\"),1,0)","v":0},{"$f":"IF(AND(Q5<>\"\",R5=\"\"),1,0)","v":0},{"$f":"SUM(T5:V5,X5:Y5)","v":0},{"$f":"IF(A5<>\"\",IF(AND(OR(F5=\"\",F5=\"Read\"),AND(N5=\"\",P5=\"\",R5=\"\")),1,0),0)","v":0},{"$f":"IF(AND(A5<>\"\",B5<>\"\"),IF(AND(OR(A5<>A4,B5<>B4),C5=\"\"),1,0),0)","v":0},null,null,"Not read","NTRD"]
[null,null,null,null,null,null,{"$f":"IF(F6=\"\",\"READ\",VLOOKUP(F6,$AB$2:$AC$5,2,FALSE))","v":"READ"},null,{"$f":"IF(H6=\"\",\"UNSP\",VLOOKUP(H6,$AB$7:$AC$10,2,FALSE))","v":"UNSP"},null,{"$f":"IF(J6=\"\",\"UNSP\",VLOOKUP(J6,$AB$12:$AC$15,2,FALSE))","v":"UNSP"},null,null,null,null,null,null,null,{"$f":"IF(OR(A6<>\"\",B6<>\"\",W6>0),IF(AND(A6<>\"\",B6<>\"\",W6=0),\"COMPLETE\",\"INCOMPLETE\"),\"\")","v":""},{"$f":"IF(AND(M6<>\"\",N6=\"\"),1,0)","v":0},{"$f":"IF(AND(O6<>\"\",P6=\"\"),1,0)","v":0},{"$f":"IF(AND(Q6<>\"\",R6=\"\"),1,0)","v":0},{"$f":"SUM(T6:V6,X6:Y6)","v":0},{"$f":"IF(A6<>\"\",IF(AND(OR(F6=\"\",F6=\"Read\"),AND(N6=\"\",P6=\"\",R6=\"\")),1,0),0)","v":0},{"$f":"IF(AND(A6<>\"\",B6<>\"\"),IF(AND(OR(A6<>A5,B6<>B5),C6=\"\"),1,0),0)","v":0}]
[null,null,null,null,null,null,"READ",null,"UNSP",null,"UNSP",null,null,null,null,null,null,null,"",0,0,0,0,0,0,null,null,null,"UNSP"]
[null,null,null,null,null,null,"READ",null,"UNSP",null,"UNSP",null,null,null,null,null,null,null,"",0,0,0,0,0,0,null,null,"Open","INOP"]
[null,null,null,null,null,null,"READ",null,"UNSP",null,"UNSP",null,null,null,null,null,null,null,"",0,0,0,0,0,0,null,null,"Partially plugged","INPP"]
[null,null,null,null,null,null,"READ",null,"UNSP",null,"UNSP",null,null,null,null,null,null,null,"",0,0,0,0,0,0,null,null,"Plugged","INPD"]
[null,null,null,null,null,null,"READ",null,"UNSP",null,"UNSP",null,null,null,null,null,null,null,"",0,0,0,0,0,0]
[null,null,null,null,null,null,"READ",null,"UNSP",null,"UNSP",null,null,null,null,null,null,null,"",0,0,0,0,0,0,null,null,null,"UNSP"]
[null,null,null,null,null,null,"READ",null,"UNSP",null,"UNSP",null,null,null,null,null,null,null,"",0,0,0,0,0,0,null,null,"Open","VNOP"]
[null,null,null,null,null,null,"READ",null,"UNSP",null,"UNSP",null,null,null,null,null,null,null,"",0,0,0,0,0,0,null,null,"Partially plugged","VNPP"]
[null,null,null,null,null,null,"READ",null,"UNSP",null,"UNSP",null,null,null,null,null,null,null,"",0,0,0,0,0,0,null,null,"Plugged","VNPD"]
[null,null,null,null,null,null,"READ",null,"UNSP",null,"UNSP",null,null,null,null,null,null,null,"",0,0,0,0,0,0]
[null,null,null,null,null,null,"READ",null,"UNSP",null,"UNSP",null,null,null,null,null,null,null,"",0,0,0,0,0,0,null,null,null,"Station No."]
[null,null,null,null,null,null,"READ",null,"UNSP",null,"UNSP",null,null,null,null,null,null,null,"",0,0,0,0,0,0,null,null,null,"generic"]
[null,null,null,null,null,null,"READ",null,"UNSP",null,"UNSP",null,null,null,null,null,null,null,"",0,0,0,0,0,0]
[null,null,null,null,null,null,"READ",null,"UNSP",null,"UNSP",null,null,null,null,null,null,null,"",0,0,0,0,0,0]
[null,null,null,null,null,null,"READ",null,"UNSP",null,"UNSP",null,null,null,null,null,null,null,"",0,0,0,0,0,0]
[null,null,null,null,null,null,"READ",null,"UNSP",null,"UNSP",null,null,null,null,null,null,null,"",0,0,0,0,0,0]
[null,null,null,null,null,null,"READ",null,"UNSP",null,"UNSP",null,null,null,null,null,null,null,"",0,0,0,0,0,0]
[null,null,null,null,null,null,"READ",null,"UNSP",null,"UNSP",null,null,null,null,null,null,null,"",0,0,0,0,0,0]
[null,null,null,null,null,null,"READ",null,"UNSP",null,"UNSP",null,null,null,null,null,null,null,"",0,0,0,0,0,0]
[null,null,null,null,null,null,"READ",null,"UNSP",null,"UNSP",null,null,null,null,null,null,null,"",0,0,0,0,0,0]
[null,null,null,null,null,null,"READ",null,"UNSP",null,"UNSP",null,null,null,null,null,null,null,"",0,0,0,0,0,0]
[null,null,null,null,null,null,"READ",null,"UNSP",null,"UNSP",null,null,null,null,null,null,null,"",0,0,0,0,0,0]
[null,null,null,null,null,null,"READ",null,"UNSP",null,"UNSP",null,null,null,null,null,null,null,"",0,0,0,0,0,0]
[null,null,null,null,null,null,"READ",null,"UNSP",null,"UNSP",null,null,null,null,null,null,null,"",0,0,0,0,0,0]
[null,null,null,null,null,null,"READ",null,"UNSP",null,"UNSP",null,null,null,null,null,null,null,"",0,0,0,0,0,0]
[null,null,null,null,null,null,"READ",null,"UNSP",null,"UNSP",null,null,null,null,null,null,null,"",0,0,0,0,0,0]
[null,null,null,null,null,null,"READ",null,"UNSP",null,"UNSP",null,null,null,null,null,null,null,"",0,0,0,0,0,0]
[null,null,null,null,null,null,"READ",null,"UNSP",null,"UNSP",null,null,null,null,null,null,null,"",0,0,0,0,0,0]
[null,null,null,null,null,null,"READ",null,"UNSP",null,"UNSP",null,null,null,null,null,null,null,"",0,0,0,0,0,0]
[null,null,null,null,null,null,"READ",null,"UNSP",null,"UNSP",null,null,null,null,null,null,null,"",0,0,0,0,0,0]
[null,null,null,null,null,null,"READ",null,"UNSP",null,"UNSP",null,null,null,null,null,null,null,"",0,0,0,0,0,0]
[null,null,null,null,null,null,"READ",null,"UNSP",null,"UNSP",null,null,null,null,null,null,null,"",0,0,0,0,0,0]
[null,null,null,null,null,null,"READ",null,"UNSP",null,"UNSP",null,null,null,null,null,null,null,"",0,0,0,0,0,0]
[null,null,null,null,null,null,"READ",null,"UNSP",null,"UNSP",null,null,null,null,null,null,null,"",0,0,0,0,0,0]
[null,null,null,null,null,null,"READ",null,"UNSP",null,"UNSP",null,null,null,null,null,null,null,"",0,0,0,0,0,0]
[null,null,null,null,null,null,"READ",null,"UNSP",null,"UNSP",null,null,null,null,null,null,null,"",0,0,0,0,0,0]
[null,null,null,null,null,null,"READ",null,"UNSP",null,"UNSP",null,null,null,null,null,null,null,"",0,0,0,0,0,0]
[null,null,null,null,null,null,"READ",null,"UNSP",null,"UNSP",null,null,null,null,null,null,null,"",0,0,0,0,0,0]
[null,null,null,null,null,null,"READ",null,"UNSP",null,"UNSP",null,null,null,null,null,null,null,"",0,0,0,0,0,0]
[null,null,null,null,null,null,"READ",null,"UNSP",null,"UNSP",null,null,null,null,null,null,null,"",0,0,0,0,0,0]
[null,null,null,null,null,null,"READ",null,"UNSP",null,"UNSP",null,null,null,null,null,null,null,"",0,0,0,0,0,0]
[null,null,null,null,null,null,"READ",null,"UNSP",null,"UNSP",null,null,null,null,null,null,null,"",0,0,0,0,0,0]
[null,null,null,null,null,null,"READ",null,"UNSP",null,"UNSP",null,null,null,null,null,null,null,"",0,0,0,0,0,0]
[null,null,null,null,null,null,"READ",null,"UNSP",null,"UNSP",null,null,null,null,null,null,null,"",0,0,0,0,0,0]
[null,null,null,null,null,null,"READ",null,"UNSP",null,"UNSP",null,null,null,null,null,null,null,"",0,0,0,0,0,0]
[null,null,null,null,null,null,"READ",null,"UNSP",null,"UNSP",null,null,null,null,null,null,null,"",0,0,0,0,0,0]
[null,null,null,null,null,null,"READ",null,"UNSP",null,"UNSP",null,null,null,null,null,null,null,"",0,0,0,0,0,0]
[null,null,null,null,null,null,"READ",null,"UNSP",null,"UNSP",null,null,null,null,null,null,null,"",0,0,0,0,0,0]
[null,null,null,null,null,null,"READ",null,"UNSP",null,"UNSP",null,null,null,null,null,null,null,"",0,0,0,0,0,0]
[null,null,null,null,null,null,"READ",null,"UNSP",null,"UNSP",null,null,null,null,null,null,null,"",0,0,0,0,0,0]
[null,null,null,null,null,null,"READ",null,"UNSP",null,"UNSP",null,null,null,null,null,null,null,"",0,0,0,0,0,0]
[null,null,null,null,null,null,"READ",null,"UNSP",null,"UNSP",null,null,null,null,null,null,null,"",0,0,0,0,0,0]
[null,null,null,null,null,null,"READ",null,"UNSP",null,"UNSP",null,null,null,null,null,null,null,"",0,0,0,0,0,0]
[null,null,null,null,null,null,"READ",null,"UNSP",null,"UNSP",null,null,null,null,null,null,null,"",0,0,0,0,0,0]
[null,null,null,null,null,null,"READ",null,"UNSP",null,"UNSP",null,null,null,null,null,null,null,"",0,0,0,0,0,0]
[null,null,null,null,null,null,"READ",null,"UNSP",null,"UNSP",null,null,null,null,null,null,null,"",0,0,0,0,0,0]
[null,null,null,null,null,null,"READ",null,"UNSP",null,"UNSP",null,null,null,null,null,null,null,"",0,0,0,0,0,0]
[null,null,null,null,null,null,"READ",null,"UNSP",null,"UNSP",null,null,null,null,null,null,null,"",0,0,0,0,0,0]
[null,null,null,null,null,null,"READ",null,"UNSP",null,"UNSP",null,null,null,null,null,null,null,"",0,0,0,0,0,0]
[null,null,null,null,null,null,"READ",null,"UNSP",null,"UNSP",null,null,null,null,null,null,null,"",0,0,0,0,0,0]
[null,null,null,null,null,null,"READ",null,"UNSP",null,"UNSP",null,null,null,null,null,null,null,"",0,0,0,0,0,0]
[null,null,null,null,null,null,"READ",null,"UNSP",null,"UNSP",null,null,null,null,null,null,null,"",0,0,0,0,0,0]
[null,null,null,null,null,null,"READ",null,"UNSP",null,"UNSP",null,null,null,null,null,null,null,"",0,0,0,0,0,0]
[null,null,null,null,null,null,{"$f":"IF(F70=\"\",\"READ\",VLOOKUP(F70,$AB$2:$AC$5,2,FALSE))","v":"READ"},null,{"$f":"IF(H70=\"\",\"UNSP\",VLOOKUP(H70,$AB$7:$AC$10,2,FALSE))","v":"UNSP"},null,{"$f":"IF(J70=\"\",\"UNSP\",VLOOKUP(J70,$AB$12:$AC$15,2,FALSE))","v":"UNSP"},null,null,null,null,null,null,null,{"$f":"IF(OR(A70<>\"\",B70<>\"\",W70>0),IF(AND(A70<>\"\",B70<>\"\",W70=0),\"COMPLETE\",\"INCOMPLETE\"),\"\")","v":""},{"$f":"IF(AND(M70<>\"\",N70=\"\"),1,0)","v":0},{"$f":"IF(AND(O70<>\"\",P70=\"\"),1,0)","v":0},{"$f":"IF(AND(Q70<>\"\",R70=\"\"),1,0)","v":0},{"$f":"SUM(T70:V70,X70:Y70)","v":0},{"$f":"IF(A70<>\"\",IF(AND(OR(F70=\"\",F70=\"Read\"),AND(N70=\"\",P70=\"\",R70=\"\")),1,0),0)","v":0},{"$f":"IF(AND(A70<>\"\",B70<>\"\"),IF(AND(OR(A70<>A69,B70<>B69),C70=\"\"),1,0),0)","v":0}]
[null,null,null,null,null,null,"READ",null,"UNSP",null,"UNSP",null,null,null,null,null,null,null,"",0,0,0,0,0,0]
[null,null,null,null,null,null,"READ",null,"UNSP",null,"UNSP",null,null,null,null,null,null,null,"",0,0,0,0,0,0]
[null,null,null,null,null,null,"READ",null,"UNSP",null,"UNSP",null,null,null,null,null,null,null,"",0,0,0,0,0,0]
[null,null,null,null,null,null,"READ",null,"UNSP",null,"UNSP",null,null,null,null,null,null,null,"",0,0,0,0,0,0]
[null,null,null,null,null,null,"READ",null,"UNSP",null,"UNSP",null,null,null,null,null,null,null,"",0,0,0,0,0,0]
[null,null,null,null,null,null,"READ",null,"UNSP",null,"UNSP",null,null,null,null,null,null,null,"",0,0,0,0,0,0]
[null,null,null,null,null,null,"READ",null,"UNSP",null,"UNSP",null,null,null,null,null,null,null,"",0,0,0,0,0,0]
[null,null,null,null,null,null,"READ",null,"UNSP",null,"UNSP",null,null,null,null,null,null,null,"",0,0,0,0,0,0]
[null,null,null,null,null,null,"READ",null,"UNSP",null,"UNSP",null,null,null,null,null,null,null,"",0,0,0,0,0,0]
[null,null,null,null,null,null,"READ",null,"UNSP",null,"UNSP",null,null,null,null,null,null,null,"",0,0,0,0,0,0]
[null,null,null,null,null,null,"READ",null,"UNSP",null,"UNSP",null,null,null,null,null,null,null,"",0,0,0,0,0,0]
[null,null,null,null,null,null,"READ",null,"UNSP",null,"UNSP",null,null,null,null,null,null,null,"",0,0,0,0,0,0]
[null,null,null,null,null,null,"READ",null,"UNSP",null,"UNSP",null,null,null,null,null,null,null,"",0,0,0,0,0,0]
[null,null,null,null,null,null,"READ",null,"UNSP",null,"UNSP",null,null,null,null,null,null,null,"",0,0,0,0,0,0]
[null,null,null,null,null,null,"READ",null,"UNSP",null,"UNSP",null,null,null,null,null,null,null,"",0,0,0,0,0,0]
[null,null,null,null,null,null,"READ",null,"UNSP",null,"UNSP",null,null,null,null,null,null,null,"",0,0,0,0,0,0]
[null,null,null,null,null,null,"READ",null,"UNSP",null,"UNSP",null,null,null,null,null,null,null,"",0,0,0,0,0,0]
[null,null,null,null,null,null,"READ",null,"UNSP",null,"UNSP",null,null,null,null,null,null,null,"",0,0,0,0,0,0]
[null,null,null,null,null,null,"READ",null,"UNSP",null,"UNSP",null,null,null,null,null,null,null,"",0,0,0,0,0,0]
[null,null,null,null,null,null,"READ",null,"UNSP",null,"UNSP",null,null,null,null,null,null,null,"",0,0,0,0,0,0]
[null,null,null,null,null,null,"READ",null,"UNSP",null,"UNSP",null,null,null,null,null,null,null,"",0,0,0,0,0,0]
[null,null,null,null,null,null,"READ",null,"UNSP",null,"UNSP",null,null,null,null,null,null,null,"",0,0,0,0,0,0]
[null,null,null,null,null,null,"READ",null,"UNSP",null,"UNSP",null,null,null,null,null,null,null,"",0,0,0,0,0,0]
[null,null,null,null,null,null,"READ",null,"UNSP",null,"UNSP",null,null,null,null,null,null,null,"",0,0,0,0,0,0]
[null,null,null,null,null,null,"READ",null,"UNSP",null,"UNSP",null,null,null,null,null,null,null,"",0,0,0,0,0,0]
[null,null,null,null,null,null,"READ",null,"UNSP",null,"UNSP",null,null,null,null,null,null,null,"",0,0,0,0,0,0]
[null,null,null,null,null,null,"READ",null,"UNSP",null,"UNSP",null,null,null,null,null,null,null,"",0,0,0,0,0,0]
[null,null,null,null,null,null,"READ",null,"UNSP",null,"UNSP",null,null,null,null,null,null,null,"",0,0,0,0,0,0]
[null,null,null,null,null,null,"READ",null,"UNSP",null,"UNSP",null,null,null,null,null,null,null,"",0,0,0,0,0,0]
[null,null,null,null,null,null,"READ",null,"UNSP",null,"UNSP",null,null,null,null,null,null,null,"",0,0,0,0,0,0]
[null,null,null,null,null,null,"READ",null,"UNSP",null,"UNSP",null,null,null,null,null,null,null,"",0,0,0,0,0,0]
[null,null,null,null,null,null,"READ",null,"UNSP",null,"UNSP",null,null,null,null,null,null,null,"",0,0,0,0,0,0]
[null,null,null,null,null,null,"READ",null,"UNSP",null,"UNSP",null,null,null,null,null,null,null,"",0,0,0,0,0,0]
[null,null,null,null,null,null,"READ",null,"UNSP",null,"UNSP",null,null,null,null,null,null,null,"",0,0,0,0,0,0]
[null,null,null,null,null,null,"READ",null,"UNSP",null,"UNSP",null,null,null,null,null,null,null,"",0,0,0,0,0,0]
[null,null,null,null,null,null,"READ",null,"UNSP",null,"UNSP",null,null,null,null,null,null,null,"",0,0,0,0,0,0]
[null,null,null,null,null,null,"READ",null,"UNSP",null,"UNSP",null,null,null,null,null,null,null,"",0,0,0,0,0,0]
[null,null,null,null,null,null,"READ",null,"UNSP",null,"UNSP",null,null,null,null,null,null,null,"",0,0,0,0,0,0]
[null,null,null,null,null,null,"READ",null,"UNSP",null,"UNSP",null,null,null,null,null,null,null,"",0,0,0,0,0,0]
[null,null,null,null,null,null,"READ",null,"UNSP",null,"UNSP",null,null,null,null,null,null,null,"",0,0,0,0,0,0]
[null,null,null,null,null,null,"READ",null,"UNSP",null,"UNSP",null,null,null,null,null,null,null,"",0,0,0,0,0,0]
[null,null,null,null,null,null,"READ",null,"UNSP",null,"UNSP",null,null,null,null,null,null,null,"",0,0,0,0,0,0]
[null,null,null,null,null,null,"READ",null,"UNSP",null,"UNSP",null,null,null,null,null,null,null,"",0,0,0,0,0,0]
[null,null,null,null,null,null,"READ",null,"UNSP",null,"UNSP",null,null,null,null,null,null,null,"",0,0,0,0,0,0]
[null,null,null,null,null,null,"READ",null,"UNSP",null,"UNSP",null,null,null,null,null,null,null,"",0,0,0,0,0,0]
[null,null,null,null,null,null,"READ",null,"UNSP",null,"UNSP",null,null,null,null,null,null,null,"",0,0,0,0,0,0]
[null,null,null,null,null,null,"READ",null,"UNSP",null,"UNSP",null,null,null,null,null,null,null,"",0,0,0,0,0,0]
[null,null,null,null,null,null,"READ",null,"UNSP",null,"UNSP",null,null,null,null,null,null,null,"",0,0,0,0,0,0]
[null,null,null,null,null,null,"READ",null,"UNSP",null,"UNSP",null,null,null,null,null,null,null,"",0,0,0,0,0,0]
[null,null,null,null,null,null,"READ",null,"UNSP",null,"UNSP",null,null,null,null,null,null,null,"",0,0,0,0,0,0]
[null,null,null,null,null,null,"READ",null,"UNSP",null,"UNSP",null,null,null,null,null,null,null,"",0,0,0,0,0,0]
[null,null,null,null,null,null,"READ",null,"UNSP",null,"UNSP",null,null,null,null,null,null,null,"",0,0,0,0,0,0]
[null,null,null,null,null,null,"READ",null,"UNSP",null,"UNSP",null,null,null,null,null,null,null,"",0,0,0,0,0,0]
[null,null,null,null,null,null,"READ",null,"UNSP",null,"UNSP",null,null,null,null,null,null,null,"",0,0,0,0,0,0]
[null,null,null,null,null,null,"READ",null,"UNSP",null,"UNSP",null,null,null,null,null,null,null,"",0,0,0,0,0,0]
[null,null,null,null,null,null,"READ",null,"UNSP",null,"UNSP",null,null,null,null,null,null,null,"",0,0,0,0,0,0]
[null,null,null,null,null,null,"READ",null,"UNSP",null,"UNSP",null,null,null,null,null,null,null,"",0,0,0,0,0,0]
[null,null,null,null,null,null,"READ",null,"UNSP",null,"UNSP",null,null,null,null,null,null,null,"",0,0,0,0,0,0]
[null,null,null,null,null,null,"READ",null,"UNSP",null,"UNSP",null,null,null,null,null,null,null,"",0,0,0,0,0,0]
[null,null,null,null,null,null,"READ",null,"UNSP",null,"UNSP",null,null,null,null,null,null,null,"",0,0,0,0,0,0]
[null,null,null,null,null,null,"READ",null,"UNSP",null,"UNSP",null,null,null,null,null,null,null,"",0,0,0,0,0,0]
[null,null,null,null,null,null,"READ",null,"UNSP",null,"UNSP",null,null,null,null,null,null,null,"",0,0,0,0,0,0]
[null,null,null,null,null,null,"READ",null,"UNSP",null,"UNSP",null,null,null,null,null,null,null,"",0,0,0,0,0,0]
[null,null,null,null,null,null,{"$f":"IF(F134=\"\",\"READ\",VLOOKUP(F134,$AB$2:$AC$5,2,FALSE))","v":"READ"},null,{"$f":"IF(H134=\"\",\"UNSP\",VLOOKUP(H134,$AB$7:$AC$10,2,FALSE))","v":"UNSP"},null,{"$f":"IF(J134=\"\",\"UNSP\",VLOOKUP(J134,$AB$12:$AC$15,2,FALSE))","v":"UNSP"},null,null,null,null,null,null,null,{"$f":"IF(OR(A134<>\"\",B134<>\"\",W134>0),IF(AND(A134<>\"\",B134<>\"\",W134=0),\"COMPLETE\",\"INCOMPLETE\"),\"\")","v":""},{"$f":"IF(AND(M134<>\"\",N134=\"\"),1,0)","v":0},{"$f":"IF(AND(O134<>\"\",P134=\"\"),1,0)","v":0},{"$f":"IF(AND(Q134<>\"\",R134=\"\"),1,0)","v":0},{"$f":"SUM(T134:V134,X134:Y134)","v":0},{"$f":"IF(A134<>\"\",IF(AND(OR(F134=\"\",F134=\"Read\"),AND(N134=\"\",P134=\"\",R134=\"\")),1,0),0)","v":0},{"$f":"IF(AND(A134<>\"\",B134<>\"\"),IF(AND(OR(A134<>A133,B134<>B133),C134=\"\"),1,0),0)","v":0}]
[null,null,null,null,null,null,"READ",null,"UNSP",null,"UNSP",null,null,null,null,null,null,null,"",0,0,0,0,0,0]
[null,null,null,null,null,null,"READ",null,"UNSP",null,"UNSP",null,null,null,null,null,null,null,"",0,0,0,0,0,0]
[null,null,null,null,null,null,"READ",null,"UNSP",null,"UNSP",null,null,null,null,null,null,null,"",0,0,0,0,0,0]
[null,null,null,null,null,null,"READ",null,"UNSP",null,"UNSP",null,null,null,null,null,null,null,"",0,0,0,0,0,0]
[null,null,null,null,null,null,"READ",null,"UNSP",null,"UNSP",null,null,null,null,null,null,null,"",0,0,0,0,0,0]
[null,null,null,null,null,null,"READ",null,"UNSP",null,"UNSP",null,null,null,null,null,null,null,"",0,0,0,0,0,0]
[null,null,null,null,null,null,"READ",null,"UNSP",null,"UNSP",null,null,null,null,null,null,null,"",0,0,0,0,0,0]
[null,null,null,null,null,null,"READ",null,"UNSP",null,"UNSP",null,null,null,null,null,null,null,"",0,0,0,0,0,0]
[null,null,null,null,null,null,"READ",null,"UNSP",null,"UNSP",null,null,null,null,null,null,null,"",0,0,0,0,0,0]
[null,null,null,null,null,null,"READ",null,"UNSP",null,"UNSP",null,null,null,null,null,null,null,"",0,0,0,0,0,0]
[null,null,null,null,null,null,"READ",null,"UNSP",null,"UNSP",null,null,null,null,null,null,null,"",0,0,0,0,0,0]
[null,null,null,null,null,null,"READ",null,"UNSP",null,"UNSP",null,null,null,null,null,null,null,"",0,0,0,0,0,0]
[null,null,null,null,null,null,"READ",null,"UNSP",null,"UNSP",null,null,null,null,null,null,null,"",0,0,0,0,0,0]
[null,null,null,null,null,null,"READ",null,"UNSP",null,"UNSP",null,null,null,null,null,null,null,"",0,0,0,0,0,0]
[null,null,null,null,null,null,"READ",null,"UNSP",null,"UNSP",null,null,null,null,null,null,null,"",0,0,0,0,0,0]
[null,null,null,null,null,null,"READ",null,"UNSP",null,"UNSP",null,null,null,null,null,null,null,"",0,0,0,0,0,0]
[null,null,null,null,null,null,"READ",null,"UNSP",null,"UNSP",null,null,null,null,null,null,null,"",0,0,0,0,0,0]
[null,null,null,null,null,null,"READ",null,"UNSP",null,"UNSP",null,null,null,null,null,null,null,"",0,0,0,0,0,0]
[null,null,null,null,null,null,"READ",null,"UNSP",null,"UNSP",null,null,null,null,null,null,null,"",0,0,0,0,0,0]
[null,null,null,null,null,null,"READ",null,"UNSP",null,"UNSP",null,null,null,null,null,null,null,"",0,0,0,0,0,0]
[null,null,null,null,null,null,"READ",null,"UNSP",null,"UNSP",null,null,null,null,null,null,null,"",0,0,0,0,0,0]
[null,null,null,null,null,null,"READ",null,"UNSP",null,"UNSP",null,null,null,null,null,null,null,"",0,0,0,0,0,0]
[null,null,null,null,null,null,"READ",null,"UNSP",null,"UNSP",null,null,null,null,null,null,null,"",0,0,0,0,0,0]
[null,null,null,null,null,null,"READ",null,"UNSP",null,"UNSP",null,null,null,null,null,null,null,"",0,0,0,0,0,0]
[null,null,null,null,null,null,"READ",null,"UNSP",null,"UNSP",null,null,null,null,null,null,null,"",0,0,0,0,0,0]
[null,null,null,null,null,null,"READ",null,"UNSP",null,"UNSP",null,null,null,null,null,null,null,"",0,0,0,0,0,0]
[null,null,null,null,null,null,"READ",null,"UNSP",null,"UNSP",null,null,null,null,null,null,null,"",0,0,0,0,0,0]
[null,null,null,null,null,null,"READ",null,"UNSP",null,"UNSP",null,null,null,null,null,null,null,"",0,0,0,0,0,0]
[null,null,null,null,null,null,"READ",null,"UNSP",null,"UNSP",null,null,null,null,null,null,null,"",0,0,0,0,0,0]
[null,null,null,null,null,null,"READ",null,"UNSP",null,"UNSP",null,null,null,null,null,null,null,"",0,0,0,0,0,0]
[null,null,null,null,null,null,"READ",null,"UNSP",null,"UNSP",null,null,null,null,null,null,null,"",0,0,0,0,0,0]
[null,null,null,null,null,null,"READ",null,"UNSP",null,"UNSP",null,null,null,null,null,null,null,"",0,0,0,0,0,0]
[null,null,null,null,null,null,"READ",null,"UNSP",null,"UNSP",null,null,null,null,null,null,null,"",0,0,0,0,0,0]
[null,null,null,null,null,null,"READ",null,"UNSP",null,"UNSP",null,null,null,null,null,null,null,"",0,0,0,0,0,0]
[null,null,null,null,null,null,"READ",null,"UNSP",null,"UNSP",null,null,null,null,null,null,null,"",0,0,0,0,0,0]
[null,null,null,null,null,null,"READ",null,"UNSP",null,"UNSP",null,null,null,null,null,null,null,"",0,0,0,0,0,0]
[null,null,null,null,null,null,"READ",null,"UNSP",null,"UNSP",null,null,null,null,null,null,null,"",0,0,0,0,0,0]
[null,null,null,null,null,null,"READ",null,"UNSP",null,"UNSP",null,null,null,null,null,null,null,"",0,0,0,0,0,0]
[null,null,null,null,null,null,"READ",null,"UNSP",null,"UNSP",null,null,null,null,null,null,null,"",0,0,0,0,0,0]
[null,null,null,null,null,null,"READ",null,"UNSP",null,"UNSP",null,null,null,null,null,null,null,"",0,0,0,0,0,0]
[null,null,null,null,null,null,"READ",null,"UNSP",null,"UNSP",null,null,null,null,null,null,null,"",0,0,0,0,0,0]
[null,null,null,null,null,null,"READ",null,"UNSP",null,"UNSP",null,null,null,null,null,null,null,"",0,0,0,0,0,0]
[null,null,null,null,null,null,"READ",null,"UNSP",null,"UNSP",null,null,null,null,null,null,null,"",0,0,0,0,0,0]
[null,null,null,null,null,null,"READ",null,"UNSP",null,"UNSP",null,null,null,null,null,null,null,"",0,0,0,0,0,0]
[null,null,null,null,null,null,"READ",null,"UNSP",null,"UNSP",null,null,null,null,null,null,null,"",0,0,0,0,0,0]
[null,null,null,null,null,null,"READ",null,"UNSP",null,"UNSP",null,null,null,null,null,null,null,"",0,0,0,0,0,0]
[null,null,null,null,null,null,"READ",null,"UNSP",null,"UNSP",null,null,null,null,null,null,null,"",0,0,0,0,0,0]
[null,null,null,null,null,null,"READ",null,"UNSP",null,"UNSP",null,null,null,null,null,null,null,"",0,0,0,0,0,0]
[null,null,null,null,null,null,"READ",null,"UNSP",null,"UNSP",null,null,null,null,null,null,null,"",0,0,0,0,0,0]
[null,null,null,null,null,null,"READ",null,"UNSP",null,"UNSP",null,null,null,null,null,null,null,"",0,0,0,0,0,0]
[null,null,null,null,null,null,"READ",null,"UNSP",null,"UNSP",null,null,null,null,null,null,null,"",0,0,0,0,0,0]
[null,null,null,null,null,null,"READ",null,"UNSP",null,"UNSP",null,null,null,null,null,null,null,"",0,0,0,0,0,0]
[null,null,null,null,null,null,"READ",null,"UNSP",null,"UNSP",null,null,null,null,null,null,null,"",0,0,0,0,0,0]
[null,null,null,null,null,null,"READ",null,"UNSP",null,"UNSP",null,null,null,null,null,null,null,"",0,0,0,0,0,0]
[null,null,null,null,null,null,"READ",null,"UNSP",null,"UNSP",null,null,null,null,null,null,null,"",0,0,0,0,0,0]
[null,null,null,null,null,null,"READ",null,"UNSP",null,"UNSP",null,null,null,null,null,null,null,"",0,0,0,0,0,0]
[null,null,null,null,null,null,"READ",null,"UNSP",null,"UNSP",null,null,null,null,null,null,null,"",0,0,0,0,0,0]
[null,null,null,null,null,null,"READ",null,"UNSP",null,"UNSP",null,null,null,null,null,null,null,"",0,0,0,0,0,0]
[null,null,null,null,null,null,"READ",null,"UNSP",null,"UNSP",null,null,null,null,null,null,null,"",0,0,0,0,0,0]
[null,null,null,null,null,null,"READ",null,"UNSP",null,"UNSP",null,null,null,null,null,null,null,"",0,0,0,0,0,0]
[null,null,null,null,null,null,"READ",null,"UNSP",null,"UNSP",null,null,null,null,null,null,null,"",0,0,0,0,0,0]
[null,null,null,null,null,null,"READ",null,"UNSP",null,"UNSP",null,null,null,null,null,null,null,"",0,0,0,0,0,0]
[null,null,null,null,null,null,"READ",null,"UNSP",null,"UNSP",null,null,null,null,null,null,null,"",0,0,0,0,0,0]
[null,null,null,null,null,null,{"$f":"IF(F198=\"\",\"READ\",VLOOKUP(F198,$AB$2:$AC$5,2,FALSE))","v":"READ"},null,{"$f":"IF(H198=\"\",\"UNSP\",VLOOKUP(H198,$AB$7:$AC$10,2,FALSE))","v":"UNSP"},null,{"$f":"IF(J198=\"\",\"UNSP\",VLOOKUP(J198,$AB$12:$AC$15,2,FALSE))","v":"UNSP"},null,null,null,null,null,null,null,{"$f":"IF(OR(A198<>\"\",B198<>\"\",W198>0),IF(AND(A198<>\"\",B198<>\"\",W198=0),\"COMPLETE\",\"INCOMPLETE\"),\"\")","v":""},{"$f":"IF(AND(M198<>\"\",N198=\"\"),1,0)","v":0},{"$f":"IF(AND(O198<>\"\",P198=\"\"),1,0)","v":0},{"$f":"IF(AND(Q198<>\"\",R198=\"\"),1,0)","v":0},{"$f":"SUM(T198:V198,X198:Y198)","v":0},{"$f":"IF(A198<>\"\",IF(AND(OR(F198=\"\",F198=\"Read\"),AND(N198=\"\",P198=\"\",R198=\"\")),1,0),0)","v":0},{"$f":"IF(AND(A198<>\"\",B198<>\"\"),IF(AND(OR(A198<>A197,B198<>B197),C198=\"\"),1,0),0)","v":0}]
[null,null,null,null,null,null,"READ",null,"UNSP",null,"UNSP",null,null,null,null,null,null,null,"",0,0,0,0,0,0]
[null,null,null,null,null,null,"READ",null,"UNSP",null,"UNSP",null,null,null,null,null,null,null,"",0,0,0,0,0,0]
[null,null,null,null,null,null,"READ",null,"UNSP",null,"UNSP",null,null,null,null,null,null,null,"",0,0,0,0,0,0]
[null,null,null,null,null,null,"READ",null,"UNSP",null,"UNSP",null,null,null,null,null,null,null,"",0,0,0,0,0,0]
[null,null,null,null,null,null,"READ",null,"UNSP",null,"UNSP",null,null,null,null,null,null,null,"",0,0,0,0,0,0]
[null,null,null,null,null,null,"READ",null,"UNSP",null,"UNSP",null,null,null,null,null,null,null,"",0,0,0,0,0,0]
[null,null,null,null,null,null,"READ",null,"UNSP",null,"UNSP",null,null,null,null,null,null,null,"",0,0,0,0,0,0]
[null,null,null,null,null,null,"READ",null,"UNSP",null,"UNSP",null,null,null,null,null,null,null,"",0,0,0,0,0,0]
[null,null,null,null,null,null,"READ",null,"UNSP",null,"UNSP",null,null,null,null,null,null,null,"",0,0,0,0,0,0]
[null,null,null,null,null,null,"READ",null,"UNSP",null,"UNSP",null,null,null,null,null,null,null,"",0,0,0,0,0,0]
[null,null,null,null,null,null,"READ",null,"UNSP",null,"UNSP",null,null,null,null,null,null,null,"",0,0,0,0,0,0]
[null,null,null,null,null,null,"READ",null,"UNSP",null,"UNSP",null,null,null,null,null,null,null,"",0,0,0,0,0,0]
[null,null,null,null,null,null,"READ",null,"UNSP",null,"UNSP",null,null,null,null,null,null,null,"",0,0,0,0,0,0]
[null,null,null,null,null,null,"READ",null,"UNSP",null,"UNSP",null,null,null,null,null,null,null,"",0,0,0,0,0,0]
[null,null,null,null,null,null,"READ",null,"UNSP",null,"UNSP",null,null,null,null,null,null,null,"",0,0,0,0,0,0]
[null,null,null,null,null,null,"READ",null,"UNSP",null,"UNSP",null,null,null,null,null,null,null,"",0,0,0,0,0,0]
[null,null,null,null,null,null,"READ",null,"UNSP",null,"UNSP",null,null,null,null,null,null,null,"",0,0,0,0,0,0]
[null,null,null,null,null,null,"READ",null,"UNSP",null,"UNSP",null,null,null,null,null,null,null,"",0,0,0,0,0,0]
[null,null,null,null,null,null,"READ",null,"UNSP",null,"UNSP",null,null,null,null,null,null,null,"",0,0,0,0,0,0]
[null,null,null,null,null,null,"READ",null,"UNSP",null,"UNSP",null,null,null,null,null,null,null,"",0,0,0,0,0,0]
[null,null,null,null,null,null,"READ",null,"UNSP",null,"UNSP",null,null,null,null,null,null,null,"",0,0,0,0,0,0]
[null,null,null,null,null,null,"READ",null,"UNSP",null,"UNSP",null,null,null,null,null,null,null,"",0,0,0,0,0,0]
[null,null,null,null,null,null,"READ",null,"UNSP",null,"UNSP",null,null,null,null,null,null,null,"",0,0,0,0,0,0]
[null,null,null,null,null,null,"READ",null,"UNSP",null,"UNSP",null,null,null,null,null,null,null,"",0,0,0,0,0,0]
[null,null,null,null,null,null,"READ",null,"UNSP",null,"UNSP",null,null,null,null,null,null,null,"",0,0,0,0,0,0]
[null,null,null,null,null,null,"READ",null,"UNSP",null,"UNSP",null,null,null,null,null,null,null,"",0,0,0,0,0,0]
[null,null,null,null,null,null,"READ",null,"UNSP",null,"UNSP",null,null,null,null,null,null,null,"",0,0,0,0,0,0]
[null,null,null,null,null,null,"READ",null,"UNSP",null,"UNSP",null,null,null,null,null,null,null,"",0,0,0,0,0,0]
[null,null,null,null,null,null,"READ",null,"UNSP",null,"UNSP",null,null,null,null,null,null,null,"",0,0,0,0,0,0]
[null,null,null,null,null,null,"READ",null,"UNSP",null,"UNSP",null,null,null,null,null,null,null,"",0,0,0,0,0,0]
[null,null,null,null,null,null,"READ",null,"UNSP",null,"UNSP",null,null,null,null,null,null,null,"",0,0,0,0,0,0]
[null,null,null,null,null,null,"READ",null,"UNSP",null,"UNSP",null,null,null,null,null,null,null,"",0,0,0,0,0,0]
[null,null,null,null,null,null,"READ",null,"UNSP",null,"UNSP",null,null,null,null,null,null,null,"",0,0,0,0,0,0]
[null,null,null,null,null,null,"READ",null,"UNSP",null,"UNSP",null,null,null,null,null,null,null,"",0,0,0,0,0,0]
[null,null,null,null,null,null,"READ",null,"UNSP",null,"UNSP",null,null,null,null,null,null,null,"",0,0,0,0,0,0]
[null,null,null,null,null,null,"READ",null,"UNSP",null,"UNSP",null,null,null,null,null,null,null,"",0,0,0,0,0,0]
[null,null,null,null,null,null,"READ",null,"UNSP",null,"UNSP",null,null,null,null,null,null,null,"",0,0,0,0,0,0]
[null,null,null,null,null,null,"READ",null,"UNSP",null,"UNSP",null,null,null,null,null,null,null,"",0,0,0,0,0,0]
[null,null,null,null,null,null,"READ",null,"UNSP",null,"UNSP",null,null,null,null,null,null,null,"",0,0,0,0,0,0]
[null,null,null,null,null,null,"READ",null,"UNSP",null,"UNSP",null,null,null,null,null,null,null,"",0,0,0,0,0,0]
[null,null,null,null,null,null,"READ",null,"UNSP",null,"UNSP",null,null,null,null,null,null,null,"",0,0,0,0,0,0]
[null,null,null,null,null,null,"READ",null,"UNSP",null,"UNSP",null,null,null,null,null,null,null,"",0,0,0,0,0,0]
[null,null,null,null,null,null,"READ",null,"UNSP",null,"UNSP",null,null,null,null,null,null,null,"",0,0,0,0,0,0]
[null,null,null,null,null,null,"READ",null,"UNSP",null,"UNSP",null,null,null,null,null,null,null,"",0,0,0,0,0,0]
[null,null,null,null,null,null,"READ",null,"UNSP",null,"UNSP",null,null,null,null,null,null,null,"",0,0,0,0,0,0]
[null,null,null,null,null,null,"READ",null,"UNSP",null,"UNSP",null,null,null,null,null,null,null,"",0,0,0,0,0,0]
[null,null,null,null,null,null,"READ",null,"UNSP",null,"UNSP",null,null,null,null,null,null,null,"",0,0,0,0,0,0]
[null,null,null,null,null,null,"READ",null,"UNSP",null,"UNSP",null,null,null,null,null,null,null,"",0,0,0,0,0,0]
[null,null,null,null,null,null,"READ",null,"UNSP",null,"UNSP",null,null,null,null,null,null,null,"",0,0,0,0,0,0]
[null,null,null,null,null,null,"READ",null,"UNSP",null,"UNSP",null,null,null,null,null,null,null,"",0,0,0,0,0,0]
[null,null,null,null,null,null,"READ",null,"UNSP",null,"UNSP",null,null,null,null,null,null,null,"",0,0,0,0,0,0]
[null,null,null,null,null,null,"READ",null,"UNSP",null,"UNSP",null,null,null,null,null,null,null,"",0,0,0,0,0,0]
[null,null,null,null,null,null,"READ",null,"UNSP",null,"UNSP",null,null,null,null,null,null,null,"",0,0,0,0,0,0]
[null,null,null,null,null,null,"READ",null,"UNSP",null,"UNSP",null,null,null,null,null,null,null,"",0,0,0,0,0,0]
[null,null,null,null,null,null,"READ",null,"UNSP",null,"UNSP",null,null,null,null,null,null,null,"",0,0,0,0,0,0]
[null,null,null,null,null,null,"READ",null,"UNSP",null,"UNSP",null,null,null,null,null,null,null,"",0,0,0,0,0,0]
[null,null,null,null,null,null,"READ",null,"UNSP",null,"UNSP",null,null,null,null,null,null,null,"",0,0,0,0,0,0]
[null,null,null,null,null,null,"READ",null,"UNSP",null,"UNSP",null,null,null,null,null,null,null,"",0,0,0,0,0,0]
[null,null,null,null,null,null,"READ",null,"UNSP",null,"UNSP",null,null,null,null,null,null,null,"",0,0,0,0,0,0]
[null,null,null,null,null,null,"READ",null,"UNSP",null,"UNSP",null,null,null,null,null,null,null,"",0,0,0,0,0,0]
[null,null,null,null,null,null,"READ",null,"UNSP",null,"UNSP",null,null,null,null,null,null,null,"",0,0,0,0,0,0]
[null,null,null,null,null,null,"READ",null,"UNSP",null,"UNSP",null,null,null,null,null,null,null,"",0,0,0,0,0,0]
[null,null,null,null,null,null,"READ",null,"UNSP",null,"UNSP",null,null,null,null,null,null,null,"",0,0,0,0,0,0]
[null,null,null,null,null,null,{"$f":"IF(F262=\"\",\"READ\",VLOOKUP(F262,$AB$2:$AC$5,2,FALSE))","v":"READ"},null,{"$f":"IF(H262=\"\",\"UNSP\",VLOOKUP(H262,$AB$7:$AC$10,2,FALSE))","v":"UNSP"},null,{"$f":"IF(J262=\"\",\"UNSP\",VLOOKUP(J262,$AB$12:$AC$15,2,FALSE))","v":"UNSP"},null,null,null,null,null,null,null,{"$f":"IF(OR(A262<>\"\",B262<>\"\",W262>0),IF(AND(A262<>\"\",B262<>\"\",W262=0),\"COMPLETE\",\"INCOMPLETE\"),\"\")","v":""},{"$f":"IF(AND(M262<>\"\",N262=\"\"),1,0)","v":0},{"$f":"IF(AND(O262<>\"\",P262=\"\"),1,0)","v":0},{"$f":"IF(AND(Q262<>\"\",R262=\"\"),1,0)","v":0},{"$f":"SUM(T262:V262,X262:Y262)","v":0},{"$f":"IF(A262<>\"\",IF(AND(OR(F262=\"\",F262=\"Read\"),AND(N262=\"\",P262=\"\",R262=\"\")),1,0),0)","v":0},{"$f":"IF(AND(A262<>\"\",B262<>\"\"),IF(AND(OR(A262<>A261,B262<>B261),C262=\"\"),1,0),0)","v":0}]
[null,null,null,null,null,null,"READ",null,"UNSP",null,"UNSP",null,null,null,null,null,null,null,"",0,0,0,0,0,0]
[null,null,null,null,null,null,"READ",null,"UNSP",null,"UNSP",null,null,null,null,null,null,null,"",0,0,0,0,0,0]
[null,null,null,null,null,null,"READ",null,"UNSP",null,"UNSP",null,null,null,null,null,null,null,"",0,0,0,0,0,0]
[null,null,null,null,null,null,"READ",null,"UNSP",null,"UNSP",null,null,null,null,null,null,null,"",0,0,0,0,0,0]
[null,null,null,null,null,null,"READ",null,"UNSP",null,"UNSP",null,null,null,null,null,null,null,"",0,0,0,0,0,0]
[null,null,null,null,null,null,"READ",null,"UNSP",null,"UNSP",null,null,null,null,null,null,null,"",0,0,0,0,0,0]
[null,null,null,null,null,null,"READ",null,"UNSP",null,"UNSP",null,null,null,null,null,null,null,"",0,0,0,0,0,0]
[null,null,null,null,null,null,"READ",null,"UNSP",null,"UNSP",null,null,null,null,null,null,null,"",0,0,0,0,0,0]
[null,null,null,null,null,null,"READ",null,"UNSP",null,"UNSP",null,null,null,null,null,null,null,"",0,0,0,0,0,0]
[null,null,null,null,null,null,"READ",null,"UNSP",null,"UNSP",null,null,null,null,null,null,null,"",0,0,0,0,0,0]
[null,null,null,null,null,null,"READ",null,"UNSP",null,"UNSP",null,null,null,null,null,null,null,"",0,0,0,0,0,0]
[null,null,null,null,null,null,"READ",null,"UNSP",null,"UNSP",null,null,null,null,null,null,null,"",0,0,0,0,0,0]
[null,null,null,null,null,null,"READ",null,"UNSP",null,"UNSP",null,null,null,null,null,null,null,"",0,0,0,0,0,0]
[null,null,null,null,null,null,"READ",null,"UNSP",null,"UNSP",null,null,null,null,null,null,null,"",0,0,0,0,0,0]
[null,null,null,null,null,null,"READ",null,"UNSP",null,"UNSP",null,null,null,null,null,null,null,"",0,0,0,0,0,0]
[null,null,null,null,null,null,"READ",null,"UNSP",null,"UNSP",null,null,null,null,null,null,null,"",0,0,0,0,0,0]
[null,null,null,null,null,null,"READ",null,"UNSP",null,"UNSP",null,null,null,null,null,null,null,"",0,0,0,0,0,0]
[null,null,null,null,null,null,"READ",null,"UNSP",null,"UNSP",null,null,null,null,null,null,null,"",0,0,0,0,0,0]
[null,null,null,null,null,null,"READ",null,"UNSP",null,"UNSP",null,null,null,null,null,null,null,"",0,0,0,0,0,0]
[null,null,null,null,null,null,"READ",null,"UNSP",null,"UNSP",null,null,null,null,null,null,null,"",0,0,0,0,0,0]
[null,null,null,null,null,null,"READ",null,"UNSP",null,"UNSP",null,null,null,null,null,null,null,"",0,0,0,0,0,0]
[null,null,null,null,null,null,"READ",null,"UNSP",null,"UNSP",null,null,null,null,null,null,null,"",0,0,0,0,0,0]
[null,null,null,null,null,null,"READ",null,"UNSP",null,"UNSP",null,null,null,null,null,null,null,"",0,0,0,0,0,0]
[null,null,null,null,null,null,"READ",null,"UNSP",null,"UNSP",null,null,null,null,null,null,null,"",0,0,0,0,0,0]
[null,null,null,null,null,null,"READ",null,"UNSP",null,"UNSP",null,null,null,null,null,null,null,"",0,0,0,0,0,0]
[null,null,null,null,null,null,"READ",null,"UNSP",null,"UNSP",null,null,null,null,null,null,null,"",0,0,0,0,0,0]
[null,null,null,null,null,null,"READ",null,"UNSP",null,"UNSP",null,null,null,null,null,null,null,"",0,0,0,0,0,0]
[null,null,null,null,null,null,"READ",null,"UNSP",null,"UNSP",null,null,null,null,null,null,null,"",0,0,0,0,0,0]
[null,null,null,null,null,null,"READ",null,"UNSP",null,"UNSP",null,null,null,null,null,null,null,"",0,0,0,0,0,0]
[null,null,null,null,null,null,"READ",null,"UNSP",null,"UNSP",null,null,null,null,null,null,null,"",0,0,0,0,0,0]
[null,null,null,null,null,null,"READ",null,"UNSP",null,"UNSP",null,null,null,null,null,null,null,"",0,0,0,0,0,0]
[null,null,null,null,null,null,"READ",null,"UNSP",null,"UNSP",null,null,null,null,null,null,null,"",0,0,0,0,0,0]
[null,null,null,null,null,null,"READ",null,"UNSP",null,"UNSP",null,null,null,null,null,null,null,"",0,0,0,0,0,0]
[null,null,null,null,null,null,"READ",null,"UNSP",null,"UNSP",null,null,null,null,null,null,null,"",0,0,0,0,0,0]
[null,null,null,null,null,null,"READ",null,"UNSP",null,"UNSP",null,null,null,null,null,null,null,"",0,0,0,0,0,0]
[null,null,null,null,null,null,"READ",null,"UNSP",null,"UNSP",null,null,null,null,null,null,null,"",0,0,0,0,0,0]
[null,null,null,null,null,null,"READ",null,"UNSP",null,"UNSP",null,null,null,null,null,null,null,"",0,0,0,0,0,0]
[null,null,null,null,null,null,"READ",null,"UNSP",null,"UNSP",null,null,null,null,null,null,null,"",0,0,0,0,0,0]
[null,null,null,null,null,null,"READ",null,"UNSP",null,"UNSP",null,null,null,null,null,null,null,"",0,0,0,0,0,0]
[null,null,null,null,null,null,"READ",null,"UNSP",null,"UNSP",null,null,null,null,null,null,null,"",0,0,0,0,0,0]
[null,null,null,null,null,null,"READ",null,"UNSP",null,"UNSP",null,null,null,null,null,null,null,"",0,0,0,0,0,0]
[null,null,null,null,null,null,"READ",null,"UNSP",null,"UNSP",null,null,null,null,null,null,null,"",0,0,0,0,0,0]
[null,null,null,null,null,null,"READ",null,"UNSP",null,"UNSP",null,null,null,null,null,null,null,"",0,0,0,0,0,0]
[null,null,null,null,null,null,"READ",null,"UNSP",null,"UNSP",null,null,null,null,null,null,null,"",0,0,0,0,0,0]
[null,null,null,null,null,null,"READ",null,"UNSP",null,"UNSP",null,null,null,null,null,null,null,"",0,0,0,0,0,0]
[null,null,null,null,null,null,"READ",null,"UNSP",null,"UNSP",null,null,null,null,null,null,null,"",0,0,0,0,0,0]
[null,null,null,null,null,null,"READ",null,"UNSP",null,"UNSP",null,null,null,null,null,null,null,"",0,0,0,0,0,0]
[null,null,null,null,null,null,"READ",null,"UNSP",null,"UNSP",null,null,null,null,null,null,null,"",0,0,0,0,0,0]
[null,null,null,null,null,null,"READ",null,"UNSP",null,"UNSP",null,null,null,null,null,null,null,"",0,0,0,0,0,0]
[null,null,null,null,null,null,"READ",null,"UNSP",null,"UNSP",null,null,null,null,null,null,null,"",0,0,0,0,0,0]
[null,null,null,null,null,null,"READ",null,"UNSP",null,"UNSP",null,null,null,null,null,null,null,"",0,0,0,0,0,0]
[null,null,null,null,null,null,"READ",null,"UNSP",null,"UNSP",null,null,null,null,null,null,null,"",0,0,0,0,0,0]
[null,null,null,null,null,null,"READ",null,"UNSP",null,"UNSP",null,null,null,null,null,null,null,"",0,0,0,0,0,0]
[null,null,null,null,null,null,"READ",null,"UNSP",null,"UNSP",null,null,null,null,null,null,null,"",0,0,0,0,0,0]
[null,null,null,null,null,null,"READ",null,"UNSP",null,"UNSP",null,null,null,null,null,null,null,"",0,0,0,0,0,0]
[null,null,null,null,null,null,"READ",null,"UNSP",null,"UNSP",null,null,null,null,null,null,null,"",0,0,0,0,0,0]
[null,null,null,null,null,null,"READ",null,"UNSP",null,"UNSP",null,null,null,null,null,null,null,"",0,0,0,0,0,0]
[null,null,null,null,null,null,"READ",null,"UNSP",null,"UNSP",null,null,null,null,null,null,null,"",0,0,0,0,0,0]
[null,null,null,null,null,null,"READ",null,"UNSP",null,"UNSP",null,null,null,null,null,null,null,"",0,0,0,0,0,0]
[null,null,null,null,null,null,"READ",null,"UNSP",null,"UNSP",null,null,null,null,null,null,null,"",0,0,0,0,0,0]
[null,null,null,null,null,null,"READ",null,"UNSP",null,"UNSP",null,null,null,null,null,null,null,"",0,0,0,0,0,0]
[null,null,null,null,null,null,"READ",null,"UNSP",null,"UNSP",null,null,null,null,null,null,null,"",0,0,0,0,0,0]
[null,null,null,null,null,null,"READ",null,"UNSP",null,"UNSP",null,null,null,null,null,null,null,"",0,0,0,0,0,0]
[null,null,null,null,null,null,{"$f":"IF(F326=\"\",\"READ\",VLOOKUP(F326,$AB$2:$AC$5,2,FALSE))","v":"READ"},null,{"$f":"IF(H326=\"\",\"UNSP\",VLOOKUP(H326,$AB$7:$AC$10,2,FALSE))","v":"UNSP"},null,{"$f":"IF(J326=\"\",\"UNSP\",VLOOKUP(J326,$AB$12:$AC$15,2,FALSE))","v":"UNSP"},null,null,null,null,null,null,null,{"$f":"IF(OR(A326<>\"\",B326<>\"\",W326>0),IF(AND(A326<>\"\",B326<>\"\",W326=0),\"COMPLETE\",\"INCOMPLETE\"),\"\")","v":""},{"$f":"IF(AND(M326<>\"\",N326=\"\"),1,0)","v":0},{"$f":"IF(AND(O326<>\"\",P326=\"\"),1,0)","v":0},{"$f":"IF(AND(Q326<>\"\",R326=\"\"),1,0)","v":0},{"$f":"SUM(T326:V326,X326:Y326)","v":0},{"$f":"IF(A326<>\"\",IF(AND(OR(F326=\"\",F326=\"Read\"),AND(N326=\"\",P326=\"\",R326=\"\")),1,0),0)","v":0},{"$f":"IF(AND(A326<>\"\",B326<>\"\"),IF(AND(OR(A326<>A325,B326<>B325),C326=\"\"),1,0),0)","v":0}]
[null,null,null,null,null,null,"READ",null,"UNSP",null,"UNSP",null,null,null,null,null,null,null,"",0,0,0,0,0,0]
[null,null,null,null,null,null,"READ",null,"UNSP",null,"UNSP",null,null,null,null,null,null,null,"",0,0,0,0,0,0]
[null,null,null,null,null,null,"READ",null,"UNSP",null,"UNSP",null,null,null,null,null,null,null,"",0,0,0,0,0,0]
[null,null,null,null,null,null,"READ",null,"UNSP",null,"UNSP",null,null,null,null,null,null,null,"",0,0,0,0,0,0]
[null,null,null,null,null,null,"READ",null,"UNSP",null,"UNSP",null,null,null,null,null,null,null,"",0,0,0,0,0,0]
[null,null,null,null,null,null,"READ",null,"UNSP",null,"UNSP",null,null,null,null,null,null,null,"",0,0,0,0,0,0]
[null,null,null,null,null,null,"READ",null,"UNSP",null,"UNSP",null,null,null,null,null,null,null,"",0,0,0,0,0,0]
[null,null,null,null,null,null,"READ",null,"UNSP",null,"UNSP",null,null,null,null,null,null,null,"",0,0,0,0,0,0]
[null,null,null,null,null,null,"READ",null,"UNSP",null,"UNSP",null,null,null,null,null,null,null,"",0,0,0,0,0,0]
[null,null,null,null,null,null,"READ",null,"UNSP",null,"UNSP",null,null,null,null,null,null,null,"",0,0,0,0,0,0]
[null,null,null,null,null,null,"READ",null,"UNSP",null,"UNSP",null,null,null,null,null,null,null,"",0,0,0,0,0,0]
[null,null,null,null,null,null,"READ",null,"UNSP",null,"UNSP",null,null,null,null,null,null,null,"",0,0,0,0,0,0]
[null,null,null,null,null,null,"READ",null,"UNSP",null,"UNSP",null,null,null,null,null,null,null,"",0,0,0,0,0,0]
[null,null,null,null,null,null,"READ",null,"UNSP",null,"UNSP",null,null,null,null,null,null,null,"",0,0,0,0,0,0]
[null,null,null,null,null,null,"READ",null,"UNSP",null,"UNSP",null,null,null,null,null,null,null,"",0,0,0,0,0,0]
[null,null,null,null,null,null,"READ",null,"UNSP",null,"UNSP",null,null,null,null,null,null,null,"",0,0,0,0,0,0]
[null,null,null,null,null,null,"READ",null,"UNSP",null,"UNSP",null,null,null,null,null,null,null,"",0,0,0,0,0,0]
[null,null,null,null,null,null,"READ",null,"UNSP",null,"UNSP",null,null,null,null,null,null,null,"",0,0,0,0,0,0]
[null,null,null,null,null,null,"READ",null,"UNSP",null,"UNSP",null,null,null,null,null,null,null,"",0,0,0,0,0,0]
[null,null,null,null,null,null,"READ",null,"UNSP",null,"UNSP",null,null,null,null,null,null,null,"",0,0,0,0,0,0]
[null,null,null,null,null,null,"READ",null,"UNSP",null,"UNSP",null,null,null,null,null,null,null,"",0,0,0,0,0,0]
[null,null,null,null,null,null,"READ",null,"UNSP",null,"UNSP",null,null,null,null,null,null,null,"",0,0,0,0,0,0]
[null,null,null,null,null,null,"READ",null,"UNSP",null,"UNSP",null,null,null,null,null,null,null,"",0,0,0,0,0,0]
[null,null,null,null,null,null,"READ",null,"UNSP",null,"UNSP",null,null,null,null,null,null,null,"",0,0,0,0,0,0]
[null,null,null,null,null,null,"READ",null,"UNSP",null,"UNSP",null,null,null,null,null,null,null,"",0,0,0,0,0,0]
[null,null,null,null,null,null,"READ",null,"UNSP",null,"UNSP",null,null,null,null,null,null,null,"",0,0,0,0,0,0]
[null,null,null,null,null,null,"READ",null,"UNSP",null,"UNSP",null,null,null,null,null,null,null,"",0,0,0,0,0,0]
[null,null,null,null,null,null,"READ",null,"UNSP",null,"UNSP",null,null,null,null,null,null,null,"",0,0,0,0,0,0]
[null,null,null,null,null,null,"READ",null,"UNSP",null,"UNSP",null,null,null,null,null,null,null,"",0,0,0,0,0,0]
[null,null,null,null,null,null,"READ",null,"UNSP",null,"UNSP",null,null,null,null,null,null,null,"",0,0,0,0,0,0]
[null,null,null,null,null,null,"READ",null,"UNSP",null,"UNSP",null,null,null,null,null,null,null,"",0,0,0,0,0,0]
[null,null,null,null,null,null,"READ",null,"UNSP",null,"UNSP",null,null,null,null,null,null,null,"",0,0,0,0,0,0]
[null,null,null,null,null,null,"READ",null,"UNSP",null,"UNSP",null,null,null,null,null,null,null,"",0,0,0,0,0,0]
[null,null,null,null,null,null,"READ",null,"UNSP",null,"UNSP",null,null,null,null,null,null,null,"",0,0,0,0,0,0]
[null,null,null,null,null,null,"READ",null,"UNSP",null,"UNSP",null,null,null,null,null,null,null,"",0,0,0,0,0,0]
[null,null,null,null,null,null,"READ",null,"UNSP",null,"UNSP",null,null,null,null,null,null,null,"",0,0,0,0,0,0]
[null,null,null,null,null,null,"READ",null,"UNSP",null,"UNSP",null,null,null,null,null,null,null,"",0,0,0,0,0,0]
[null,null,null,null,null,null,"READ",null,"UNSP",null,"UNSP",null,null,null,null,null,null,null,"",0,0,0,0,0,0]
[null,null,null,null,null,null,"READ",null,"UNSP",null,"UNSP",null,null,null,null,null,null,null,"",0,0,0,0,0,0]
[null,null,null,null,null,null,"READ",null,"UNSP",null,"UNSP",null,null,null,null,null,null,null,"",0,0,0,0,0,0]
[null,null,null,null,null,null,"READ",null,"UNSP",null,"UNSP",null,null,null,null,null,null,null,"",0,0,0,0,0,0]
[null,null,null,null,null,null,"READ",null,"UNSP",null,"UNSP",null,null,null,null,null,null,null,"",0,0,0,0,0,0]
[null,null,null,null,null,null,"READ",null,"UNSP",null,"UNSP",null,null,null,null,null,null,null,"",0,0,0,0,0,0]
[null,null,null,null,null,null,"READ",null,"UNSP",null,"UNSP",null,null,null,null,null,null,null,"",0,0,0,0,0,0]
[null,null,null,null,null,null,"READ",null,"UNSP",null,"UNSP",null,null,null,null,null,null,null,"",0,0,0,0,0,0]
[null,null,null,null,null,null,"READ",null,"UNSP",null,"UNSP",null,null,null,null,null,null,null,"",0,0,0,0,0,0]
[null,null,null,null,null,null,"READ",null,"UNSP",null,"UNSP",null,null,null,null,null,null,null,"",0,0,0,0,0,0]
[null,null,null,null,null,null,"READ",null,"UNSP",null,"UNSP",null,null,null,null,null,null,null,"",0,0,0,0,0,0]
[null,null,null,null,null,null,"READ",null,"UNSP",null,"UNSP",null,null,null,null,null,null,null,"",0,0,0,0,0,0]
[null,null,null,null,null,null,"READ",null,"UNSP",null,"UNSP",null,null,null,null,null,null,null,"",0,0,0,0,0,0]
[null,null,null,null,null,null,"READ",null,"UNSP",null,"UNSP",null,null,null,null,null,null,null,"",0,0,0,0,0,0]
[null,null,null,null,null,null,"READ",null,"UNSP",null,"UNSP",null,null,null,null,null,null,null,"",0,0,0,0,0,0]
[null,null,null,null,null,null,"READ",null,"UNSP",null,"UNSP",null,null,null,null,null,null,null,"",0,0,0,0,0,0]
[null,null,null,null,null,null,"READ",null,"UNSP",null,"UNSP",null,null,null,null,null,null,null,"",0,0,0,0,0,0]
[null,null,null,null,null,null,"READ",null,"UNSP",null,"UNSP",null,null,null,null,null,null,null,"",0,0,0,0,0,0]
[null,null,null,null,null,null,"READ",null,"UNSP",null,"UNSP",null,null,null,null,null,null,null,"",0,0,0,0,0,0]
[null,null,null,null,null,null,"READ",null,"UNSP",null,"UNSP",null,null,null,null,null,null,null,"",0,0,0,0,0,0]
[null,null,null,null,null,null,"READ",null,"UNSP",null,"UNSP",null,null,null,null,null,null,null,"",0,0,0,0,0,0]
[null,null,null,null,null,null,"READ",null,"UNSP",null,"UNSP",null,null,null,null,null,null,null,"",0,0,0,0,0,0]
[null,null,null,null,null,null,"READ",null,"UNSP",null,"UNSP",null,null,null,null,null,null,null,"",0,0,0,0,0,0]
[null,null,null,null,null,null,"READ",null,"UNSP",null,"UNSP",null,null,null,null,null,null,null,"",0,0,0,0,0,0]
[null,null,null,null,null,null,"READ",null,"UNSP",null,"UNSP",null,null,null,null,null,null,null,"",0,0,0,0,0,0]
[null,null,null,null,null,null,"READ",null,"UNSP",null,"UNSP",null,null,null,null,null,null,null,"",0,0,0,0,0,0]
[null,null,null,null,null,null,{"$f":"IF(F390=\"\",\"READ\",VLOOKUP(F390,$AB$2:$AC$5,2,FALSE))","v":"READ"},null,{"$f":"IF(H390=\"\",\"UNSP\",VLOOKUP(H390,$AB$7:$AC$10,2,FALSE))","v":"UNSP"},null,{"$f":"IF(J390=\"\",\"UNSP\",VLOOKUP(J390,$AB$12:$AC$15,2,FALSE))","v":"UNSP"},null,null,null,null,null,null,null,{"$f":"IF(OR(A390<>\"\",B390<>\"\",W390>0),IF(AND(A390<>\"\",B390<>\"\",W390=0),\"COMPLETE\",\"INCOMPLETE\"),\"\")","v":""},{"$f":"IF(AND(M390<>\"\",N390=\"\"),1,0)","v":0},{"$f":"IF(AND(O390<>\"\",P390=\"\"),1,0)","v":0},{"$f":"IF(AND(Q390<>\"\",R390=\"\"),1,0)","v":0},{"$f":"SUM(T390:V390,X390:Y390)","v":0},{"$f":"IF(A390<>\"\",IF(AND(OR(F390=\"\",F390=\"Read\"),AND(N390=\"\",P390=\"\",R390=\"\")),1,0),0)","v":0},{"$f":"IF(AND(A390<>\"\",B390<>\"\"),IF(AND(OR(A390<>A389,B390<>B389),C390=\"\"),1,0),0)","v":0}]
[null,null,null,null,null,null,"READ",null,"UNSP",null,"UNSP",null,null,null,null,null,null,null,"",0,0,0,0,0,0]
[null,null,null,null,null,null,"READ",null,"UNSP",null,"UNSP",null,null,null,null,null,null,null,"",0,0,0,0,0,0]
[null,null,null,null,null,null,"READ",null,"UNSP",null,"UNSP",null,null,null,null,null,null,null,"",0,0,0,0,0,0]
[null,null,null,null,null,null,"READ",null,"UNSP",null,"UNSP",null,null,null,null,null,null,null,"",0,0,0,0,0,0]
[null,null,null,null,null,null,"READ",null,"UNSP",null,"UNSP",null,null,null,null,null,null,null,"",0,0,0,0,0,0]
[null,null,null,null,null,null,"READ",null,"UNSP",null,"UNSP",null,null,null,null,null,null,null,"",0,0,0,0,0,0]
[null,null,null,null,null,null,"READ",null,"UNSP",null,"UNSP",null,null,null,null,null,null,null,"",0,0,0,0,0,0]
[null,null,null,null,null,null,"READ",null,"UNSP",null,"UNSP",null,null,null,null,null,null,null,"",0,0,0,0,0,0]
[null,null,null,null,null,null,"READ",null,"UNSP",null,"UNSP",null,null,null,null,null,null,null,"",0,0,0,0,0,0]
[null,null,null,null,null,null,"READ",null,"UNSP",null,"UNSP",null,null,null,null,null,null,null,"",0,0,0,0,0,0]
[null,null,null,null,null,null,"READ",null,"UNSP",null,"UNSP",null,null,null,null,null,null,null,"",0,0,0,0,0,0]
[null,null,null,null,null,null,"READ",null,"UNSP",null,"UNSP",null,null,null,null,null,null,null,"",0,0,0,0,0,0]
[null,null,null,null,null,null,"READ",null,"UNSP",null,"UNSP",null,null,null,null,null,null,null,"",0,0,0,0,0,0]
[null,null,null,null,null,null,"READ",null,"UNSP",null,"UNSP",null,null,null,null,null,null,null,"",0,0,0,0,0,0]
[null,null,null,null,null,null,"READ",null,"UNSP",null,"UNSP",null,null,null,null,null,null,null,"",0,0,0,0,0,0]
[null,null,null,null,null,null,"READ",null,"UNSP",null,"UNSP",null,null,null,null,null,null,null,"",0,0,0,0,0,0]
[null,null,null,null,null,null,"READ",null,"UNSP",null,"UNSP",null,null,null,null,null,null,null,"",0,0,0,0,0,0]
[null,null,null,null,null,null,"READ",null,"UNSP",null,"UNSP",null,null,null,null,null,null,null,"",0,0,0,0,0,0]
[null,null,null,null,null,null,"READ",null,"UNSP",null,"UNSP",null,null,null,null,null,null,null,"",0,0,0,0,0,0]
[null,null,null,null,null,null,"READ",null,"UNSP",null,"UNSP",null,null,null,null,null,null,null,"",0,0,0,0,0,0]
[null,null,null,null,null,null,"READ",null,"UNSP",null,"UNSP",null,null,null,null,null,null,null,"",0,0,0,0,0,0]
[null,null,null,null,null,null,"READ",null,"UNSP",null,"UNSP",null,null,null,null,null,null,null,"",0,0,0,0,0,0]
[null,null,null,null,null,null,"READ",null,"UNSP",null,"UNSP",null,null,null,null,null,null,null,"",0,0,0,0,0,0]
[null,null,null,null,null,null,"READ",null,"UNSP",null,"UNSP",null,null,null,null,null,null,null,"",0,0,0,0,0,0]
[null,null,null,null,null,null,"READ",null,"UNSP",null,"UNSP",null,null,null,null,null,null,null,"",0,0,0,0,0,0]
[null,null,null,null,null,null,"READ",null,"UNSP",null,"UNSP",null,null,null,null,null,null,null,"",0,0,0,0,0,0]
[null,null,null,null,null,null,"READ",null,"UNSP",null,"UNSP",null,null,null,null,null,null,null,"",0,0,0,0,0,0]
[null,null,null,null,null,null,"READ",null,"UNSP",null,"UNSP",null,null,null,null,null,null,null,"",0,0,0,0,0,0]
[null,null,null,null,null,null,"READ",null,"UNSP",null,"UNSP",null,null,null,null,null,null,null,"",0,0,0,0,0,0]
[null,null,null,null,null,null,"READ",null,"UNSP",null,"UNSP",null,null,null,null,null,null,null,"",0,0,0,0,0,0]
[null,null,null,null,null,null,"READ",null,"UNSP",null,"UNSP",null,null,null,null,null,null,null,"",0,0,0,0,0,0]
[null,null,null,null,null,null,"READ",null,"UNSP",null,"UNSP",null,null,null,null,null,null,null,"",0,0,0,0,0,0]
[null,null,null,null,null,null,"READ",null,"UNSP",null,"UNSP",null,null,null,null,null,null,null,"",0,0,0,0,0,0]
[null,null,null,null,null,null,"READ",null,"UNSP",null,"UNSP",null,null,null,null,null,null,null,"",0,0,0,0,0,0]
[null,null,null,null,null,null,"READ",null,"UNSP",null,"UNSP",null,null,null,null,null,null,null,"",0,0,0,0,0,0]
[null,null,null,null,null,null,"READ",null,"UNSP",null,"UNSP",null,null,null,null,null,null,null,"",0,0,0,0,0,0]
[null,null,null,null,null,null,"READ",null,"UNSP",null,"UNSP",null,null,null,null,null,null,null,"",0,0,0,0,0,0]
[null,null,null,null,null,null,"READ",null,"UNSP",null,"UNSP",null,null,null,null,null,null,null,"",0,0,0,0,0,0]
[null,null,null,null,null,null,"READ",null,"UNSP",null,"UNSP",null,null,null,null,null,null,null,"",0,0,0,0,0,0]
[null,null,null,null,null,null,"READ",null,"UNSP",null,"UNSP",null,null,null,null,null,null,null,"",0,0,0,0,0,0]
[null,null,null,null,null,null,"READ",null,"UNSP",null,"UNSP",null,null,null,null,null,null,null,"",0,0,0,0,0,0]
[null,null,null,null,null,null,"READ",null,"UNSP",null,"UNSP",null,null,null,null,null,null,null,"",0,0,0,0,0,0]
[null,null,null,null,null,null,"READ",null,"UNSP",null,"UNSP",null,null,null,null,null,null,null,"",0,0,0,0,0,0]
[null,null,null,null,null,null,"READ",null,"UNSP",null,"UNSP",null,null,null,null,null,null,null,"",0,0,0,0,0,0]
[null,null,null,null,null,null,"READ",null,"UNSP",null,"UNSP",null,null,null,null,null,null,null,"",0,0,0,0,0,0]
[null,null,null,null,null,null,"READ",null,"UNSP",null,"UNSP",null,null,null,null,null,null,null,"",0,0,0,0,0,0]
[null,null,null,null,null,null,"READ",null,"UNSP",null,"UNSP",null,null,null,null,null,null,null,"",0,0,0,0,0,0]
[null,null,null,null,null,null,"READ",null,"UNSP",null,"UNSP",null,null,null,null,null,null,null,"",0,0,0,0,0,0]
[null,null,null,null,null,null,"READ",null,"UNSP",null,"UNSP",null,null,null,null,null,null,null,"",0,0,0,0,0,0]
[null,null,null,null,null,null,"READ",null,"UNSP",null,"UNSP",null,null,null,null,null,null,null,"",0,0,0,0,0,0]
[null,null,null,null,null,null,"READ",null,"UNSP",null,"UNSP",null,null,null,null,null,null,null,"",0,0,0,0,0,0]
[null,null,null,null,null,null,"READ",null,"UNSP",null,"UNSP",null,null,null,null,null,null,null,"",0,0,0,0,0,0]
[null,null,null,null,null,null,"READ",null,"UNSP",null,"UNSP",null,null,null,null,null,null,null,"",0,0,0,0,0,0]
[null,null,null,null,null,null,"READ",null,"UNSP",null,"UNSP",null,null,null,null,null,null,null,"",0,0,0,0,0,0]
[null,null,null,null,null,null,"READ",null,"UNSP",null,"UNSP",null,null,null,null,null,null,null,"",0,0,0,0,0,0]
[null,null,null,null,null,null,"READ",null,"UNSP",null,"UNSP",null,null,null,null,null,null,null,"",0,0,0,0,0,0]
[null,null,null,null,null,null,"READ",null,"UNSP",null,"UNSP",null,null,null,null,null,null,null,"",0,0,0,0,0,0]
[null,null,null,null,null,null,"READ",null,"UNSP",null,"UNSP",null,null,null,null,null,null,null,"",0,0,0,0,0,0]
[null,null,null,null,null,null,"READ",null,"UNSP",null,"UNSP",null,null,null,null,null,null,null,"",0,0,0,0,0,0]
[null,null,null,null,null,null,"READ",null,"UNSP",null,"UNSP",null,null,null,null,null,null,null,"",0,0,0,0,0,0]
[null,null,null,null,null,null,"READ",null,"UNSP",null,"UNSP",null,null,null,null,null,null,null,"",0,0,0,0,0,0]
[null,null,null,null,null,null,"READ",null,"UNSP",null,"UNSP",null,null,null,null,null,null,null,"",0,0,0,0,0,0]
[null,null,null,null,null,null,"READ",null,"UNSP",null,"UNSP",null,null,null,null,null,null,null,"",0,0,0,0,0,0]
[null,null,null,null,null,null,{"$f":"IF(F454=\"\",\"READ\",VLOOKUP(F454,$AB$2:$AC$5,2,FALSE))","v":"READ"},null,{"$f":"IF(H454=\"\",\"UNSP\",VLOOKUP(H454,$AB$7:$AC$10,2,FALSE))","v":"UNSP"},null,{"$f":"IF(J454=\"\",\"UNSP\",VLOOKUP(J454,$AB$12:$AC$15,2,FALSE))","v":"UNSP"},null,null,null,null,null,null,null,{"$f":"IF(OR(A454<>\"\",B454<>\"\",W454>0),IF(AND(A454<>\"\",B454<>\"\",W454=0),\"COMPLETE\",\"INCOMPLETE\"),\"\")","v":""},{"$f":"IF(AND(M454<>\"\",N454=\"\"),1,0)","v":0},{"$f":"IF(AND(O454<>\"\",P454=\"\"),1,0)","v":0},{"$f":"IF(AND(Q454<>\"\",R454=\"\"),1,0)","v":0},{"$f":"SUM(T454:V454,X454:Y454)","v":0},{"$f":"IF(A454<>\"\",IF(AND(OR(F454=\"\",F454=\"Read\"),AND(N454=\"\",P454=\"\",R454=\"\")),1,0),0)","v":0},{"$f":"IF(AND(A454<>\"\",B454<>\"\"),IF(AND(OR(A454<>A453,B454<>B453),C454=\"\"),1,0),0)","v":0}]
[null,null,null,null,null,null,"READ",null,"UNSP",null,"UNSP",null,null,null,null,null,null,null,"",0,0,0,0,0,0]
[null,null,null,null,null,null,"READ",null,"UNSP",null,"UNSP",null,null,null,null,null,null,null,"",0,0,0,0,0,0]
[null,null,null,null,null,null,"READ",null,"UNSP",null,"UNSP",null,null,null,null,null,null,null,"",0,0,0,0,0,0]
[null,null,null,null,null,null,"READ",null,"UNSP",null,"UNSP",null,null,null,null,null,null,null,"",0,0,0,0,0,0]
[null,null,null,null,null,null,"READ",null,"UNSP",null,"UNSP",null,null,null,null,null,null,null,"",0,0,0,0,0,0]
[null,null,null,null,null,null,"READ",null,"UNSP",null,"UNSP",null,null,null,null,null,null,null,"",0,0,0,0,0,0]
[null,null,null,null,null,null,"READ",null,"UNSP",null,"UNSP",null,null,null,null,null,null,null,"",0,0,0,0,0,0]
[null,null,null,null,null,null,"READ",null,"UNSP",null,"UNSP",null,null,null,null,null,null,null,"",0,0,0,0,0,0]
[null,null,null,null,null,null,"READ",null,"UNSP",null,"UNSP",null,null,null,null,null,null,null,"",0,0,0,0,0,0]
[null,null,null,null,null,null,"READ",null,"UNSP",null,"UNSP",null,null,null,null,null,null,null,"",0,0,0,0,0,0]
[null,null,null,null,null,null,"READ",null,"UNSP",null,"UNSP",null,null,null,null,null,null,null,"",0,0,0,0,0,0]
[null,null,null,null,null,null,"READ",null,"UNSP",null,"UNSP",null,null,null,null,null,null,null,"",0,0,0,0,0,0]
[null,null,null,null,null,null,"READ",null,"UNSP",null,"UNSP",null,null,null,null,null,null,null,"",0,0,0,0,0,0]
[null,null,null,null,null,null,"READ",null,"UNSP",null,"UNSP",null,null,null,null,null,null,null,"",0,0,0,0,0,0]
[null,null,null,null,null,null,"READ",null,"UNSP",null,"UNSP",null,null,null,null,null,null,null,"",0,0,0,0,0,0]
[null,null,null,null,null,null,"READ",null,"UNSP",null,"UNSP",null,null,null,null,null,null,null,"",0,0,0,0,0,0]
[null,null,null,null,null,null,"READ",null,"UNSP",null,"UNSP",null,null,null,null,null,null,null,"",0,0,0,0,0,0]
[null,null,null,null,null,null,"READ",null,"UNSP",null,"UNSP",null,null,null,null,null,null,null,"",0,0,0,0,0,0]
[null,null,null,null,null,null,"READ",null,"UNSP",null,"UNSP",null,null,null,null,null,null,null,"",0,0,0,0,0,0]
[null,null,null,null,null,null,"READ",null,"UNSP",null,"UNSP",null,null,null,null,null,null,null,"",0,0,0,0,0,0]
[null,null,null,null,null,null,"READ",null,"UNSP",null,"UNSP",null,null,null,null,null,null,null,"",0,0,0,0,0,0]
[null,null,null,null,null,null,"READ",null,"UNSP",null,"UNSP",null,null,null,null,null,null,null,"",0,0,0,0,0,0]
[null,null,null,null,null,null,"READ",null,"UNSP",null,"UNSP",null,null,null,null,null,null,null,"",0,0,0,0,0,0]
[null,null,null,null,null,null,"READ",null,"UNSP",null,"UNSP",null,null,null,null,null,null,null,"",0,0,0,0,0,0]
[null,null,null,null,null,null,"READ",null,"UNSP",null,"UNSP",null,null,null,null,null,null,null,"",0,0,0,0,0,0]
[null,null,null,null,null,null,"READ",null,"UNSP",null,"UNSP",null,null,null,null,null,null,null,"",0,0,0,0,0,0]
[null,null,null,null,null,null,"READ",null,"UNSP",null,"UNSP",null,null,null,null,null,null,null,"",0,0,0,0,0,0]
[null,null,null,null,null,null,"READ",null,"UNSP",null,"UNSP",null,null,null,null,null,null,null,"",0,0,0,0,0,0]
[null,null,null,null,null,null,"READ",null,"UNSP",null,"UNSP",null,null,null,null,null,null,null,"",0,0,0,0,0,0]
[null,null,null,null,null,null,"READ",null,"UNSP",null,"UNSP",null,null,null,null,null,null,null,"",0,0,0,0,0,0]
[null,null,null,null,null,null,"READ",null,"UNSP",null,"UNSP",null,null,null,null,null,null,null,"",0,0,0,0,0,0]
[null,null,null,null,null,null,"READ",null,"UNSP",null,"UNSP",null,null,null,null,null,null,null,"",0,0,0,0,0,0]
[null,null,null,null,null,null,"READ",null,"UNSP",null,"UNSP",null,null,null,null,null,null,null,"",0,0,0,0,0,0]
[null,null,null,null,null,null,"READ",null,"UNSP",null,"UNSP",null,null,null,null,null,null,null,"",0,0,0,0,0,0]
[null,null,null,null,null,null,"READ",null,"UNSP",null,"UNSP",null,null,null,null,null,null,null,"",0,0,0,0,0,0]
[null,null,null,null,null,null,"READ",null,"UNSP",null,"UNSP",null,null,null,null,null,null,null,"",0,0,0,0,0,0]
[null,null,null,null,null,null,"READ",null,"UNSP",null,"UNSP",null,null,null,null,null,null,null,"",0,0,0,0,0,0]
[null,null,null,null,null,null,"READ",null,"UNSP",null,"UNSP",null,null,null,null,null,null,null,"",0,0,0,0,0,0]
[null,null,null,null,null,null,"READ",null,"UNSP",null,"UNSP",null,null,null,null,null,null,null,"",0,0,0,0,0,0]
[null,null,null,null,null,null,"READ",null,"UNSP",null,"UNSP",null,null,null,null,null,null,null,"",0,0,0,0,0,0]
[null,null,null,null,null,null,"READ",null,"UNSP",null,"UNSP",null,null,null,null,null,null,null,"",0,0,0,0,0,0]
[null,null,null,null,null,null,"READ",null,"UNSP",null,"UNSP",null,null,null,null,null,null,null,"",0,0,0,0,0,0]
[null,null,null,null,null,null,"READ",null,"UNSP",null,"UNSP",null,null,null,null,null,null,null,"",0,0,0,0,0,0]
[null,null,null,null,null,null,"READ",null,"UNSP",null,"UNSP",null,null,null,null,null,null,null,"",0,0,0,0,0,0]
[null,null,null,null,null,null,"READ",null,"UNSP",null,"UNSP",null,null,null,null,null,null,null,"",0,0,0,0,0,0]
[null,null,null,null,null,null,"READ",null,"UNSP",null,"UNSP",null,null,null,null,null,null,null,"",0,0,0,0,0,0]
[null,null,null,null,null,null,"READ",null,"UNSP",null,"UNSP",null,null,null,null,null,null,null,"",0,0,0,0,0,0]
[null,null,null,null,null,null,"READ",null,"UNSP",null,"UNSP",null,null,null,null,null,null,null,"",0,0,0,0,0,0]
[null,null,null,null,null,null,"READ",null,"UNSP",null,"UNSP",null,null,null,null,null,null,null,"",0,0,0,0,0,0]
[null,null,null,null,null,null,"READ",null,"UNSP",null,"UNSP",null,null,null,null,null,null,null,"",0,0,0,0,0,0]